[Event "BPB Limburg Open 2019 Group A"]
[Site "Maastricht, Netherlands"]
[Date "2019.06.07"]
[Round "1.9"]
[White "Dambacher, Martijn"]
[Black "Strating, Sybolt"]
[Result "1-0"]
[TimeControl "2h + 15 sec/move"]
[WhiteFideId "1005030"]
[BlackFideId "1002694"]
[WhiteElo "2511"]
[BlackElo "2251"]

1. d4 {[%clk 02:00:23]} {[%emt 00:00:06]} d5 {[%clk 02:00:24]} {[%emt
00:00:06]} 2. c4 {[%clk 02:00:27]} {[%emt 00:00:11]} c6 {[%clk 02:00:33]}
{[%emt 00:00:06]} 3. Nf3 {[%clk 01:58:51]} {[%emt 00:01:51]} Nf6 {[%clk
02:00:36]} {[%emt 00:00:11]} 4. e3 {[%clk 01:58:55]} {[%emt 00:00:11]} a6
{[%clk 02:00:14]} {[%emt 00:00:37]} 5. Bd3 {[%clk 01:51:59]} {[%emt 00:07:11]}
dxc4 {[%clk 01:57:59]} {[%emt 00:02:30]} 6. Bxc4 {[%clk 01:51:56]} {[%emt
00:00:18]} b5 {[%clk 01:57:16]} {[%emt 00:00:58]} 7. Bd3 {[%clk 01:50:30]}
{[%emt 00:01:40]} e6 {[%clk 01:56:27]} {[%emt 00:01:04]} 8. a4 {[%clk
01:48:22]} {[%emt 00:02:23]} Bb7 {[%clk 01:53:08]} {[%emt 00:03:34]} 9. O-O
{[%clk 01:40:00]} {[%emt 00:08:37]} Be7 {[%clk 01:50:53]} {[%emt 00:02:30]} 10.
e4 {[%clk 01:32:03]} {[%emt 00:08:12]} Nbd7 {[%clk 01:47:22]} {[%emt 00:03:45]}
11. Qe2 {[%clk 01:25:38]} {[%emt 00:06:41]} bxa4 {[%clk 01:42:28]} {[%emt
00:05:09]} 12. Nc3 {[%clk 01:15:32]} {[%emt 00:10:20]} c5 {[%clk 01:31:00]}
{[%emt 00:11:43]} 13. d5 {[%clk 01:04:02]} {[%emt 00:11:46]} exd5 {[%clk
01:23:24]} {[%emt 00:07:51]} 14. e5 {[%clk 01:03:37]} {[%emt 00:00:39]} Ng8
{[%clk 01:10:22]} {[%emt 00:13:17]} 15. Rd1 {[%clk 00:55:06]} {[%emt 00:08:46]}
Nb6 {[%clk 01:02:04]} {[%emt 00:08:33]} 16. Bf5 {[%clk 00:46:53]} {[%emt
00:08:28]} g6 {[%clk 00:56:50]} {[%emt 00:05:29]} 17. Bc2 {[%clk 00:33:57]}
{[%emt 00:13:11]} Kf8 {[%clk 00:55:04]} {[%emt 00:02:01]} 18. Bf4 {[%clk
00:28:33]} {[%emt 00:05:39]} Kg7 {[%clk 00:51:52]} {[%emt 00:03:27]} 19. e6
{[%clk 00:25:24]} {[%emt 00:03:24]} f6 {[%clk 00:47:30]} {[%emt 00:04:37]} 20.
Be4 {[%clk 00:24:31]} {[%emt 00:01:09]} Bf8 {[%clk 00:33:52]} {[%emt 00:13:53]}
21. h4 {[%clk 00:17:39]} {[%emt 00:07:06]} h5 {[%clk 00:25:31]} {[%emt
00:08:35]} 22. Bc2 {[%clk 00:08:53]} {[%emt 00:09:02]} Bd6 {[%clk 00:23:16]}
{[%emt 00:02:30]} 23. Bd2 {[%clk 00:07:37]} {[%emt 00:01:30]} Ne7 {[%clk
00:22:18]} {[%emt 00:01:13]} 24. Nxa4 {[%clk 00:07:39]} {[%emt 00:00:14]} Nxa4
{[%clk 00:18:01]} {[%emt 00:04:32]} 25. Rxa4 {[%clk 00:07:48]} {[%emt
00:00:05]} Qc7 {[%clk 00:16:55]} {[%emt 00:01:22]} 26. b4 {[%clk 00:04:09]}
{[%emt 00:03:55]} cxb4 {[%clk 00:13:23]} {[%emt 00:03:47]} 27. Bxb4 {[%clk
00:04:15]} {[%emt 00:00:09]} Bxb4 {[%clk 00:12:28]} {[%emt 00:01:10]} 28. Rxb4
{[%clk 00:04:25]} {[%emt 00:00:05]} a5 {[%clk 00:11:52]} {[%emt 00:00:51]} 29.
Ra4 {[%clk 00:04:02]} {[%emt 00:00:38]} Ba6 {[%clk 00:08:32]} {[%emt 00:03:35]}
30. Qd2 {[%clk 00:03:13]} {[%emt 00:01:03]} Bb5 {[%clk 00:07:31]} {[%emt
00:01:16]} 31. Ra3 {[%clk 00:03:17]} {[%emt 00:00:11]} Bc4 {[%clk 00:06:33]}
{[%emt 00:01:14]} 32. Nd4 {[%clk 00:03:11]} {[%emt 00:00:20]} Ra6 {[%clk
00:05:39]} {[%emt 00:01:09]} 33. Rda1 {[%clk 00:02:46]} {[%emt 00:00:40]} Rha8
{[%clk 00:05:32]} {[%emt 00:00:22]} 34. Rg3 {[%clk 00:02:06]} {[%emt 00:00:55]}
Rg8 {[%clk 00:03:26]} {[%emt 00:02:21]} 35. Bxg6 {[%clk 00:01:28]} {[%emt
00:00:53]} Qxg3 {[%clk 00:01:27]} {[%emt 00:02:14]} 36. fxg3 {[%clk 00:01:30]}
{[%emt 00:00:13]} Kxg6 {[%clk 00:01:16]} {[%emt 00:00:26]} 37. Rxa5 {[%clk
00:01:24]} {[%emt 00:00:21]} Rga8 {[%clk 00:01:02]} {[%emt 00:00:29]} 38. Rxa6
{[%clk 00:01:17]} {[%emt 00:00:22]} Rxa6 {[%clk 00:01:17]} 39. Qb4 {[%clk
00:01:14]} {[%emt 00:00:19]} Ra7 {[%clk 00:00:55]} {[%emt 00:00:37]} 40. Qb8
{[%clk 00:01:22]} {[%emt 00:00:06]} Ra1+ {[%clk 00:00:39]} {[%emt 00:00:31]} 41.
Kh2 {[%clk 00:01:30]} {[%emt 00:00:07]} Kg7 {[%clk 00:00:27]} {[%emt 00:00:28]}
42. Qc7 {[%clk 00:01:33]} {[%emt 00:00:12]} 1-0

[Event "BPB Limburg Open 2019 Group A"]
[Site "Maastricht, Netherlands"]
[Date "2019.06.07"]
[Round "1.10"]
[White "Van Dijk, Harold"]
[Black "Sadzikowski, Daniel"]
[Result "0-1"]
[TimeControl "2h + 15 sec/move"]
[WhiteFideId "1006797"]
[BlackFideId "1132253"]
[WhiteElo "2250"]
[BlackElo "2510"]

1. e4 {[%clk 02:00:24]} {[%emt 00:00:05]} c5 {[%clk 02:00:20]} {[%emt
00:00:10]} 2. Nc3 {[%clk 02:00:29]} {[%emt 00:00:10]} a6 {[%clk 01:59:31]}
{[%emt 00:01:05]} 3. g3 {[%clk 02:00:26]} {[%emt 00:00:18]} d6 {[%clk
01:58:21]} {[%emt 00:01:25]} 4. Bg2 {[%clk 02:00:24]} {[%emt 00:00:17]} Nf6
{[%clk 01:58:31]} {[%emt 00:00:05]} 5. b3 {[%clk 01:58:42]} {[%emt 00:01:57]}
Nc6 {[%clk 01:57:48]} {[%emt 00:00:58]} 6. Bb2 {[%clk 01:58:49]} {[%emt
00:00:08]} e6 {[%clk 01:57:59]} {[%emt 00:00:04]} 7. Nge2 {[%clk 01:58:41]}
{[%emt 00:00:22]} Be7 {[%clk 01:55:37]} {[%emt 00:02:37]} 8. d4 {[%clk
01:58:48]} {[%emt 00:00:08]} cxd4 {[%clk 01:54:34]} {[%emt 00:01:19]} 9. Nxd4
{[%clk 01:58:48]} {[%emt 00:00:15]} Bd7 {[%clk 01:54:41]} {[%emt 00:00:08]} 10.
Nde2 {[%clk 01:56:22]} {[%emt 00:02:41]} b5 {[%clk 01:52:19]} {[%emt 00:02:38]}
11. Qd2 {[%clk 01:49:13]} {[%emt 00:07:22]} O-O {[%clk 01:46:42]} {[%emt
00:05:53]} 12. O-O {[%clk 01:48:57]} {[%emt 00:00:31]} Qc7 {[%clk 01:42:10]}
{[%emt 00:04:46]} 13. Nf4 {[%clk 01:47:53]} {[%emt 00:01:19]} Rac8 {[%clk
01:34:11]} {[%emt 00:08:14]} 14. Nd1 {[%clk 01:40:30]} {[%emt 00:07:39]} Ne5
{[%clk 01:30:35]} {[%emt 00:03:51]} 15. Rc1 {[%clk 01:40:27]} {[%emt 00:00:18]}
Bc6 {[%clk 01:30:33]} {[%emt 00:00:18]} 16. Re1 {[%clk 01:40:13]} {[%emt
00:00:29]} Qb7 {[%clk 01:20:20]} {[%emt 00:10:29]} 17. f3 {[%clk 01:32:47]}
{[%emt 00:07:41]} Rfd8 {[%clk 01:09:17]} {[%emt 00:11:18]} 18. Qe2 {[%clk
01:28:28]} {[%emt 00:04:33]} Ned7 {[%clk 00:56:10]} {[%emt 00:13:24]} 19. Ne3
{[%clk 01:24:20]} {[%emt 00:04:21]} Bf8 {[%clk 00:45:11]} {[%emt 00:11:16]} 20.
Red1 {[%clk 01:19:03]} {[%emt 00:05:31]} a5 {[%clk 00:45:24]} {[%emt 00:00:03]}
21. Bh3 {[%clk 01:12:53]} {[%emt 00:06:24]} Re8 {[%clk 00:41:27]} {[%emt
00:04:13]} 22. Qd2 {[%clk 01:12:34]} {[%emt 00:00:34]} a4 {[%clk 00:38:58]}
{[%emt 00:02:45]} 23. Ne2 {[%clk 01:11:11]} {[%emt 00:01:37]} Qb8 {[%clk
00:30:11]} {[%emt 00:09:03]} 24. Nd4 {[%clk 01:08:51]} {[%emt 00:02:35]} Ba8
{[%clk 00:30:25]} {[%emt 00:00:02]} 25. Ne2 {[%clk 01:04:49]} {[%emt 00:04:16]}
d5 {[%clk 00:26:54]} {[%emt 00:03:45]} 26. exd5 {[%clk 00:57:35]} {[%emt
00:07:29]} Bxd5 {[%clk 00:22:15]} {[%emt 00:04:54]} 27. Nxd5 {[%clk 00:55:29]}
{[%emt 00:02:22]} Nxd5 {[%clk 00:22:28]} {[%emt 00:00:02]} 28. Bd4 {[%clk
00:55:27]} {[%emt 00:00:16]} Bc5 {[%clk 00:20:39]} {[%emt 00:02:03]} 29. c4
{[%clk 00:53:05]} {[%emt 00:02:38]} bxc4 {[%clk 00:20:18]} {[%emt 00:00:37]} 30.
bxc4 {[%clk 00:52:35]} {[%emt 00:00:45]} Ne5 {[%clk 00:17:28]} {[%emt
00:03:04]} 31. Bg2 {[%clk 00:50:47]} {[%emt 00:02:03]} Nb6 {[%clk 00:17:17]}
{[%emt 00:00:25]} 32. Bxc5 {[%clk 00:46:23]} {[%emt 00:04:39]} Rxc5 {[%clk
00:17:30]} {[%emt 00:00:03]} 33. f4 {[%clk 00:46:18]} {[%emt 00:00:20]} Nexc4
{[%clk 00:16:56]} {[%emt 00:00:49]} 34. Qb4 {[%clk 00:46:25]} {[%emt 00:00:08]}
Rec8 {[%clk 00:13:36]} {[%emt 00:03:34]} 35. Rb1 {[%clk 00:33:32]} {[%emt
00:13:09]} Qc7 {[%clk 00:12:44]} {[%emt 00:01:07]} 36. Rdc1 {[%clk 00:33:41]}
{[%emt 00:00:06]} h5 {[%clk 00:08:18]} {[%emt 00:04:40]} 37. Nd4 {[%clk
00:25:06]} {[%emt 00:08:50]} h4 {[%clk 00:08:13]} {[%emt 00:00:20]} 38. Nb5
{[%clk 00:24:23]} {[%emt 00:00:57]} Qe7 {[%clk 00:07:54]} {[%emt 00:00:34]} 39.
Nc3 {[%clk 00:22:05]} {[%emt 00:02:33]} hxg3 {[%clk 00:06:50]} {[%emt
00:01:19]} 40. hxg3 {[%clk 00:22:07]} {[%emt 00:00:13]} Nd2 {[%clk 00:05:03]}
{[%emt 00:02:02]} 41. Rb2 {[%clk 00:21:42]} {[%emt 00:00:40]} Nd5 {[%clk
00:03:22]} {[%emt 00:01:57]} 42. Qd4 {[%clk 00:15:58]} {[%emt 00:05:58]} Nxc3
{[%clk 00:02:59]} {[%emt 00:00:37]} 43. Rxd2 {[%clk 00:15:54]} {[%emt
00:00:20]} Ne2+ {[%clk 00:03:04]} {[%emt 00:00:11]} 44. Rxe2 {[%clk 00:15:54]}
{[%emt 00:00:15]} Rxc1+ {[%clk 00:03:16]} {[%emt 00:00:02]} 45. Kh2 {[%clk
00:16:02]} {[%emt 00:00:07]} R1c4 {[%clk 00:02:53]} {[%emt 00:00:39]} 46. Qd3
{[%clk 00:15:05]} {[%emt 00:01:12]} Qd8 {[%clk 00:03:01]} {[%emt 00:00:06]} 47.
Qb1 {[%clk 00:14:15]} {[%emt 00:01:06]} Rc3 {[%clk 00:02:41]} {[%emt 00:00:34]}
48. Be4 {[%clk 00:14:08]} {[%emt 00:00:22]} Qd4 {[%clk 00:02:35]} {[%emt
00:00:19]} 49. Qb7 {[%clk 00:14:00]} {[%emt 00:00:24]} g6 {[%clk 00:02:09]}
{[%emt 00:00:40]} 50. Qe7 {[%clk 00:13:42]} {[%emt 00:00:35]} Qd1 {[%clk
00:01:42]} {[%emt 00:00:41]} 51. Rg2 {[%clk 00:13:27]} {[%emt 00:00:31]} Rc1
{[%clk 00:01:29]} {[%emt 00:00:28]} 52. g4 {[%clk 00:11:35]} {[%emt 00:02:08]}
Qh1+ {[%clk 00:01:42]} {[%emt 00:00:02]} 53. Kg3 {[%clk 00:11:46]} {[%emt
00:00:04]} R8c3+ {[%clk 00:01:34]} {[%emt 00:00:23]} 54. Bf3 {[%clk 00:11:48]}
{[%emt 00:00:13]} Rxf3+ {[%clk 00:01:23]} {[%emt 00:00:26]} 55. Kxf3 {[%clk
00:11:59]} {[%emt 00:00:05]} Rc3+ {[%clk 00:01:16]} {[%emt 00:00:15]} 0-1

[Event "BPB Limburg Open 2019 Group A"]
[Site "Maastricht, Netherlands"]
[Date "2019.06.07"]
[Round "1.12"]
[White "Hoerstmann, Martin"]
[Black "Beerdsen, Thomas"]
[Result "0-1"]
[TimeControl "2h + 15 sec/move"]
[WhiteFideId "4602730"]
[BlackFideId "1030108"]
[WhiteElo "2247"]
[BlackElo "2488"]

1. d4 {[%clk 01:59:28]} {[%emt 00:01:00]} d5 {[%clk 02:00:21]} {[%emt
00:00:09]} 2. c4 {[%clk 01:59:26]} {[%emt 00:00:17]} Nc6 {[%clk 02:00:28]}
{[%emt 00:00:09]} 3. cxd5 {[%clk 01:59:14]} {[%emt 00:00:26]} Qxd5 {[%clk
02:00:19]} {[%emt 00:00:24]} 4. e3 {[%clk 01:59:21]} {[%emt 00:00:09]} e5
{[%clk 02:00:29]} {[%emt 00:00:05]} 5. Nc3 {[%clk 01:59:20]} {[%emt 00:00:15]}
Bb4 {[%clk 02:00:39]} {[%emt 00:00:05]} 6. a3 {[%clk 01:59:07]} {[%emt
00:00:28]} Bxc3+ {[%clk 02:00:49]} {[%emt 00:00:06]} 7. bxc3 {[%clk 01:59:17]}
{[%emt 00:00:05]} Nf6 {[%clk 02:00:53]} {[%emt 00:00:10]} 8. c4 {[%clk
01:58:55]} {[%emt 00:00:38]} Qd6 {[%clk 01:59:24]} {[%emt 00:01:44]} 9. d5
{[%clk 01:58:57]} {[%emt 00:00:13]} Ne7 {[%clk 01:59:14]} {[%emt 00:00:25]} 10.
a4 {[%clk 01:57:31]} {[%emt 00:01:41]} c6 {[%clk 01:52:29]} {[%emt 00:07:00]}
11. Ba3 {[%clk 01:47:54]} {[%emt 00:09:51]} Qd8 {[%clk 01:51:23]} {[%emt
00:01:20]} 12. Qb3 {[%clk 01:30:16]} {[%emt 00:17:54]} cxd5 {[%clk 01:49:18]}
{[%emt 00:02:21]} 13. Nf3 {[%clk 01:30:20]} {[%emt 00:00:10]} e4 {[%clk
01:37:33]} {[%emt 00:12:00]} 14. Nd4 {[%clk 01:30:13]} {[%emt 00:00:22]} O-O
{[%clk 01:36:02]} {[%emt 00:01:46]} 15. Be2 {[%clk 01:24:15]} {[%emt 00:06:13]}
Re8 {[%clk 01:31:57]} {[%emt 00:04:20]} 16. O-O {[%clk 01:07:47]} {[%emt
00:16:43]} Nc6 {[%clk 01:25:55]} {[%emt 00:06:16]} 17. Rfd1 {[%clk 00:56:55]}
{[%emt 00:11:08]} a6 {[%clk 01:02:12]} {[%emt 00:23:58]} 18. cxd5 {[%clk
00:36:13]} {[%emt 00:20:57]} Na5 {[%clk 00:58:43]} {[%emt 00:03:44]} 19. Qb2
{[%clk 00:34:39]} {[%emt 00:01:49]} Nxd5 {[%clk 00:55:03]} {[%emt 00:03:55]} 20.
Rac1 {[%clk 00:33:22]} {[%emt 00:01:32]} Qg5 {[%clk 00:52:07]} {[%emt
00:03:10]} 21. Rc5 {[%clk 00:24:05]} {[%emt 00:09:32]} Nc6 {[%clk 00:44:19]}
{[%emt 00:08:03]} 22. h4 {[%clk 00:20:47]} {[%emt 00:03:33]} Qe5 {[%clk
00:43:02]} {[%emt 00:01:32]} 23. Qb3 {[%clk 00:16:50]} {[%emt 00:04:13]} Nce7
{[%clk 00:37:28]} {[%emt 00:05:48]} 24. Ra5 {[%clk 00:13:12]} {[%emt 00:03:53]}
Be6 {[%clk 00:29:29]} {[%emt 00:08:14]} 25. Qxb7 {[%clk 00:11:45]} {[%emt
00:01:43]} Qf6 {[%clk 00:27:12]} {[%emt 00:02:32]} 26. Qb2 {[%clk 00:10:43]}
{[%emt 00:01:16]} Qxh4 {[%clk 00:26:05]} {[%emt 00:01:22]} 27. Nxe6 {[%clk
00:10:42]} {[%emt 00:00:17]} fxe6 {[%clk 00:26:15]} {[%emt 00:00:05]} 28. Rxa6
{[%clk 00:10:54]} {[%emt 00:00:03]} Rab8 {[%clk 00:21:21]} {[%emt 00:05:09]} 29.
Qa1 {[%clk 00:10:56]} {[%emt 00:00:13]} Nf5 {[%clk 00:20:30]} {[%emt 00:01:05]}
30. Qe5 {[%clk 00:10:56]} {[%emt 00:00:15]} Ndxe3 {[%clk 00:13:06]} {[%emt
00:07:40]} 31. fxe3 {[%clk 00:09:41]} {[%emt 00:01:30]} Ng3 {[%clk 00:13:05]}
{[%emt 00:00:15]} 32. Kf2 {[%clk 00:04:43]} {[%emt 00:05:14]} Rf8+ {[%clk
00:11:32]} {[%emt 00:01:49]} 33. Bxf8 {[%clk 00:04:54]} {[%emt 00:00:04]} Rxf8+
{[%clk 00:11:43]} {[%emt 00:00:03]} 34. Ke1 {[%clk 00:05:08]} {[%emt 00:00:02]}
Nxe2+ {[%clk 00:11:35]} {[%emt 00:00:23]} 35. Kd2 {[%clk 00:05:02]} {[%emt
00:00:21]} Qf2 {[%clk 00:11:17]} {[%emt 00:00:33]} 36. Rd6 {[%clk 00:03:53]}
{[%emt 00:01:23]} Nd4+ {[%clk 00:10:46]} {[%emt 00:00:47]} 37. Kc3 {[%clk
00:04:06]} {[%emt 00:00:02]} Qxe3+ {[%clk 00:10:14]} {[%emt 00:00:46]} 38. Kb4
{[%clk 00:03:41]} {[%emt 00:00:40]} Qb3+ {[%clk 00:10:08]} {[%emt 00:00:21]} 39.
Ka5 {[%clk 00:03:54]} {[%emt 00:00:02]} Ra8+ {[%clk 00:10:18]} {[%emt
00:00:05]} 40. Ra6 {[%clk 00:04:07]} {[%emt 00:00:03]} Nc6# {[%clk 00:10:28]}
{[%emt 00:00:04]} 0-1

[ePGN "0.1;DGT LiveChess/2.2.4"]

[Event "BPB Limburg Open 2019 Group A"]
[Site "Maastricht, Netherlands"]
[Date "2019.06.08"]
[Round "2.1"]
[White "Bok, Benjamin"]
[Black "Hilwerda, Jonas"]
[Result "1-0"]
[TimeControl "2h + 15 sec/move"]
[WhiteFideId "1017063"]
[BlackFideId "1046713"]
[WhiteElo "2638"]
[BlackElo "2303"]

1. Nf3 {[%clk 01:58:16]} {[%emt 00:00:29]} Nf6 {[%clk 02:00:14]} {[%emt
00:00:17]} 2. c4 {[%clk 01:58:12]} {[%emt 00:00:20]} b6 {[%clk 02:00:13]}
{[%emt 00:00:16]} 3. g3 {[%clk 01:58:21]} {[%emt 00:00:05]} Bb7 {[%clk
02:00:24]} {[%emt 00:00:04]} 4. Bg2 {[%clk 01:58:32]} {[%emt 00:00:04]} e6
{[%clk 02:00:28]} {[%emt 00:00:12]} 5. O-O {[%clk 01:58:13]} {[%emt 00:00:33]}
g6 {[%clk 02:00:31]} {[%emt 00:00:12]} 6. d4 {[%clk 01:58:11]} {[%emt
00:00:18]} Bg7 {[%clk 02:00:39]} {[%emt 00:00:07]} 7. Bf4 {[%clk 01:58:17]}
{[%emt 00:00:09]} O-O {[%clk 01:55:19]} {[%emt 00:05:35]} 8. Nc3 {[%clk
01:56:49]} {[%emt 00:01:44]} Ne4 {[%clk 01:49:48]} {[%emt 00:05:46]} 9. Nb5
{[%clk 01:56:22]} {[%emt 00:00:43]} Na6 {[%clk 01:46:31]} {[%emt 00:03:31]} 10.
Rc1 {[%clk 01:55:45]} {[%emt 00:00:52]} Qc8 {[%clk 01:41:52]} {[%emt 00:04:53]}
11. Qc2 {[%clk 01:50:36]} {[%emt 00:05:24]} d6 {[%clk 01:39:40]} {[%emt
00:02:27]} 12. a3 {[%clk 01:48:13]} {[%emt 00:02:39]} Re8 {[%clk 01:36:19]}
{[%emt 00:03:35]} 13. b4 {[%clk 01:32:19]} {[%emt 00:16:09]} e5 {[%clk
01:35:11]} {[%emt 00:01:22]} 14. dxe5 {[%clk 01:28:28]} {[%emt 00:04:07]} dxe5
{[%clk 01:34:55]} {[%emt 00:00:31]} 15. Be3 {[%clk 01:28:30]} {[%emt 00:00:13]}
Rd8 {[%clk 01:26:06]} {[%emt 00:09:03]} 16. c5 {[%clk 01:21:43]} {[%emt
00:07:03]} bxc5 {[%clk 01:16:15]} {[%emt 00:10:05]} 17. bxc5 {[%clk 01:21:07]}
{[%emt 00:00:51]} Bd5 {[%clk 01:14:01]} {[%emt 00:02:28]} 18. c6 {[%clk
01:17:58]} {[%emt 00:03:26]} Nb8 {[%clk 01:13:13]} {[%emt 00:01:03]} 19. Rfd1
{[%clk 01:15:36]} {[%emt 00:02:36]} a6 {[%clk 01:05:28]} {[%emt 00:08:00]} 20.
Na7 {[%clk 01:10:51]} {[%emt 00:05:00]} Qe6 {[%clk 01:00:01]} {[%emt 00:05:41]}
21. Qxe4 {[%clk 01:10:08]} {[%emt 00:00:59]} Bxe4 {[%clk 00:59:22]} {[%emt
00:00:54]} 22. Rxd8+ {[%clk 01:10:19]} {[%emt 00:00:04]} Bf8 {[%clk 00:59:29]}
{[%emt 00:00:07]} 23. Bh6 {[%clk 01:10:07]} {[%emt 00:00:27]} Qe7 {[%clk
00:57:44]} {[%emt 00:02:00]} 24. Rxf8+ {[%clk 01:09:40]} {[%emt 00:00:43]} Qxf8
{[%clk 00:57:57]} {[%emt 00:00:02]} 25. Bxf8 {[%clk 01:09:46]} {[%emt
00:00:09]} Kxf8 {[%clk 00:54:16]} {[%emt 00:03:57]} 26. Nxe5 {[%clk 01:09:19]}
{[%emt 00:00:42]} Bxg2 {[%clk 00:53:18]} {[%emt 00:01:12]} 27. Kxg2 {[%clk
01:09:28]} {[%emt 00:00:06]} Rxa7 {[%clk 00:52:55]} {[%emt 00:00:38]} 28. Rb1
{[%clk 01:09:39]} {[%emt 00:00:04]} Ra8 {[%clk 00:52:10]} {[%emt 00:01:00]} 29.
Rxb8+ {[%clk 01:09:49]} {[%emt 00:00:05]} Rxb8 {[%clk 00:52:23]} {[%emt
00:00:02]} 30. Nd7+ {[%clk 01:09:57]} {[%emt 00:00:07]} 1-0

[Event "BPB Limburg Open 2019 Group A"]
[Site "Maastricht, Netherlands"]
[Date "2019.06.08"]
[Round "2.2"]
[White "Donchenko, Alexander"]
[Black "Song, Raymond"]
[Result "1-0"]
[TimeControl "2h + 15 sec/move"]
[WhiteFideId "24603295"]
[BlackFideId "3203824"]
[WhiteElo "2618"]
[BlackElo "2450"]

1. c4 {[%clk 02:00:24]} {[%emt 00:00:05]} Nf6 {[%clk 02:00:25]} {[%emt
00:00:05]} 2. g3 {[%clk 02:00:27]} {[%emt 00:00:13]} e6 {[%clk 02:00:36]}
{[%emt 00:00:03]} 3. Bg2 {[%clk 02:00:36]} {[%emt 00:00:05]} d5 {[%clk
02:00:49]} {[%emt 00:00:03]} 4. Nf3 {[%clk 02:00:43]} {[%emt 00:00:08]} Be7
{[%clk 02:01:00]} {[%emt 00:00:04]} 5. O-O {[%clk 02:00:27]} {[%emt 00:00:31]}
O-O {[%clk 02:01:11]} {[%emt 00:00:05]} 6. d4 {[%clk 02:00:37]} {[%emt
00:00:05]} dxc4 {[%clk 02:01:23]} {[%emt 00:00:04]} 7. Qc2 {[%clk 02:00:27]}
{[%emt 00:00:25]} b6 {[%clk 02:01:33]} {[%emt 00:00:04]} 8. Bg5 {[%clk
01:55:53]} {[%emt 00:04:49]} Nd5 {[%clk 02:01:39]} {[%emt 00:00:09]} 9. Bxe7
{[%clk 01:55:39]} {[%emt 00:00:30]} Qxe7 {[%clk 02:01:50]} {[%emt 00:00:04]} 10.
Ne5 {[%clk 01:40:37]} {[%emt 00:15:17]} Bb7 {[%clk 02:02:01]} {[%emt 00:00:05]}
11. Qxc4 {[%clk 01:23:43]} {[%emt 00:17:09]} c5 {[%clk 02:01:52]} {[%emt
00:00:23]} 12. Rc1 {[%emt 00:09:59]} Rc8 {[%clk 01:58:12]} {[%emt 00:00:01]} 13.
Nc3 {[%clk 01:13:25]} {[%emt 00:04:42]} Nxc3 {[%clk 01:56:48]} {[%emt
00:01:39]} 14. Rxc3 {[%clk 01:13:24]} {[%emt 00:00:16]} Bxg2 {[%clk 01:56:57]}
{[%emt 00:00:06]} 15. Kxg2 {[%clk 01:13:29]} {[%emt 00:00:09]} Qb7+ {[%clk
01:44:49]} {[%emt 00:12:23]} 16. Kg1 {[%clk 01:06:31]} {[%emt 00:07:13]} Nd7
{[%clk 01:43:10]} {[%emt 00:01:55]} 17. Nxd7 {[%clk 00:49:52]} {[%emt
00:16:54]} Qxd7 {[%clk 01:43:14]} {[%emt 00:00:11]} 18. Rac1 {[%clk 00:49:49]}
{[%emt 00:00:18]} b5 {[%clk 01:43:23]} {[%emt 00:00:06]} 19. Qd3 {[%clk
00:49:51]} {[%emt 00:00:13]} c4 {[%clk 01:39:08]} {[%emt 00:04:30]} 20. Qd2
{[%clk 00:49:32]} {[%emt 00:00:34]} Rd8 {[%clk 01:38:40]} {[%emt 00:00:43]} 21.
b3 {[%clk 00:45:07]} {[%emt 00:04:41]} cxb3 {[%clk 01:38:25]} {[%emt 00:00:30]}
22. Rxb3 {[%clk 00:44:57]} {[%emt 00:00:24]} h6 {[%clk 01:32:54]} {[%emt
00:05:46]} 23. e3 {[%clk 00:43:04]} {[%emt 00:02:08]} Rac8 {[%clk 01:32:03]}
{[%emt 00:01:06]} 24. Rbc3 {[%clk 00:42:38]} {[%emt 00:00:41]} Rxc3 {[%clk
01:31:59]} {[%emt 00:00:19]} 25. Qxc3 {[%clk 00:42:46]} {[%emt 00:00:07]} a6
{[%clk 01:21:23]} {[%emt 00:10:52]} 26. Qc6 {[%clk 00:40:14]} {[%emt 00:02:47]}
Qd5 {[%clk 01:18:55]} {[%emt 00:02:43]} 27. Qxa6 {[%clk 00:38:25]} {[%emt
00:02:04]} Ra8 {[%clk 01:16:50]} {[%emt 00:02:20]} 28. Rc8+ {[%clk 00:38:27]}
{[%emt 00:00:13]} Rxc8 {[%clk 01:17:04]} {[%emt 00:00:01]} 29. Qxc8+ {[%clk
00:38:33]} {[%emt 00:00:08]} Kh7 {[%clk 01:17:17]} {[%emt 00:00:02]} 30. Qc2+
{[%clk 00:37:50]} {[%emt 00:00:58]} f5 {[%clk 01:16:18]} {[%emt 00:01:14]} 31.
h4 {[%clk 00:36:32]} {[%emt 00:01:32]} Kg6 {[%clk 01:15:47]} {[%emt 00:00:47]}
32. a3 {[%clk 00:34:24]} {[%emt 00:02:24]} Kf6 {[%clk 01:13:32]} {[%emt
00:02:30]} 33. Qc8 {[%clk 00:33:06]} {[%emt 00:01:32]} Qd6 {[%clk 01:12:04]}
{[%emt 00:01:43]} 34. Qe8 {[%clk 00:21:35]} {[%emt 00:11:46]} g6 {[%clk
00:54:13]} {[%emt 00:18:07]} 35. Qh8+ {[%clk 00:19:31]} {[%emt 00:02:18]} Kf7
{[%clk 00:54:22]} {[%emt 00:00:06]} 36. Qh7+ {[%clk 00:19:25]} {[%emt
00:00:22]} Kf6 {[%clk 00:54:26]} {[%emt 00:00:10]} 37. Qh8+ {[%clk 00:14:00]}
{[%emt 00:05:40]} Kf7 {[%clk 00:54:34]} {[%emt 00:00:08]} 38. Qh7+ {[%clk
00:14:11]} {[%emt 00:00:05]} Kf6 {[%clk 00:54:45]} {[%emt 00:00:04]} 39. Qxh6
{[%clk 00:14:22]} {[%emt 00:00:04]} Qxa3 {[%clk 00:54:39]} {[%emt 00:00:21]} 40.
h5 {[%clk 00:14:11]} {[%emt 00:00:27]} Qa1+ {[%clk 00:53:39]} {[%emt 00:01:14]}
41. Kh2 {[%clk 00:12:51]} {[%emt 00:01:34]} Qf1 {[%clk 00:50:03]} {[%emt
00:03:51]} 42. Qxg6+ {[%clk 00:09:08]} {[%emt 00:03:59]} Ke7 {[%clk 00:50:17]}
43. Qg7+ {[%clk 00:08:17]} {[%emt 00:01:05]} Kd6 {[%clk 00:44:17]} {[%emt
00:06:14]} 44. h6 {[%clk 00:08:25]} {[%emt 00:00:08]} Qxf2+ {[%clk 00:43:59]}
{[%emt 00:00:33]} 45. Kh3 {[%clk 00:08:39]} {[%emt 00:00:02]} Qe2 {[%clk
00:42:39]} {[%emt 00:01:35]} 46. Kh4 {[%clk 00:07:09]} {[%emt 00:01:45]} Qh2+
{[%clk 00:42:48]} {[%emt 00:00:05]} 47. Kg5 {[%clk 00:07:21]} {[%emt 00:00:03]}
Qxg3+ {[%clk 00:42:59]} {[%emt 00:00:04]} 48. Kf6 {[%clk 00:07:29]} {[%emt
00:00:07]} f4 {[%clk 00:38:56]} {[%emt 00:04:19]} 49. Qe7+ {[%clk 00:06:58]}
{[%emt 00:00:46]} Kc6 {[%clk 00:39:10]} {[%emt 00:00:01]} 50. Qxe6+ {[%clk
00:07:06]} {[%emt 00:00:08]} Kb7 {[%clk 00:39:22]} {[%emt 00:00:03]} 51. Qe4+
{[%clk 00:07:05]} {[%emt 00:00:14]} 1-0